[Event "Early-Titled-Tuesday-Blitz-March-19-2024"]
[Site "Chess.com"]
[Date "2024.03.19"]
[Round "3"]
[White "StankovicIvan"]
[Black "LiamPutnam2008"]
[Result "0-1"]
[WhiteElo "2544"]
[BlackElo "2882"]
[TimeControl "180+1"]
[EndTime "8:29:21 PDT"]
[Termination "LiamPutnam2008 won on time"]

1. e4 {[%clk 0:02:41.1]} 1... c5 {[%clk 0:02:59.5]} 2. c4 {[%clk 0:02:40.4]}
2... Nc6 {[%clk 0:02:59]} 3. Nc3 {[%clk 0:02:41.3]} 3... g6 {[%clk 0:02:58.9]}
4. g3 {[%clk 0:02:42.2]} 4... Bg7 {[%clk 0:02:59.5]} 5. Bg2 {[%clk 0:02:42.9]}
5... e6 {[%clk 0:03:00]} 6. d3 {[%clk 0:02:43.5]} 6... Nge7 {[%clk 0:03:00.7]}
7. Nge2 {[%clk 0:02:44.1]} 7... O-O {[%clk 0:03:01.3]} 8. Be3 {[%clk 0:02:44.6]}
8... d6 {[%clk 0:03:01.5]} 9. d4 {[%clk 0:02:45]} 9... cxd4 {[%clk 0:02:38.3]}
10. Nxd4 {[%clk 0:02:44.1]} 10... Nxd4 {[%clk 0:02:39.2]} 11. Bxd4 {[%clk
0:02:42.2]} 11... Bxd4 {[%clk 0:02:40.1]} 12. Qxd4 {[%clk 0:02:42.3]} 12... Nc6
{[%clk 0:02:41]} 13. Qd2 {[%clk 0:02:37.1]} 13... Qe7 {[%clk 0:02:41.2]} 14. O-O
{[%clk 0:02:36.7]} 14... Rd8 {[%clk 0:02:36.2]} 15. Rfd1 {[%clk 0:02:36.6]}
15... Ne5 {[%clk 0:02:24.2]} 16. b3 {[%clk 0:02:31.7]} 16... Rb8 {[%clk
0:02:10]} 17. Nb5 {[%clk 0:02:05.7]} 17... b6 {[%clk 0:01:51.1]} 18. Nxd6 {[%clk
0:01:50.8]} 18... Ba6 {[%clk 0:01:49.5]} 19. f4 {[%clk 0:01:50.2]} 19... Nd7
{[%clk 0:01:33.8]} 20. e5 {[%clk 0:01:42.1]} 20... f6 {[%clk 0:01:31.6]} 21. Qe3
{[%clk 0:01:35.2]} 21... fxe5 {[%clk 0:01:31]} 22. fxe5 {[%clk 0:01:36.1]} 22...
Qg7 {[%clk 0:01:27.7]} 23. Bh3 {[%clk 0:01:30.6]} 23... Qxe5 {[%clk 0:01:16]}
24. Bxe6+ {[%clk 0:01:28.8]} 24... Kg7 {[%clk 0:01:15.9]} 25. Qxe5+ {[%clk
0:01:10.8]} 25... Nxe5 {[%clk 0:01:16.8]} 26. Ne4 {[%clk 0:01:04]} 26... Bb7
{[%clk 0:01:13]} 27. Bd5 {[%clk 0:01:02.3]} 27... Bxd5 {[%clk 0:01:06.5]} 28.
Rxd5 {[%clk 0:01:00.7]} 28... Re8 {[%clk 0:01:04.5]} 29. Nd6 {[%clk 0:00:56.3]}
29... Re7 {[%clk 0:01:00.7]} 30. Rf1 {[%clk 0:00:37.1]} 30... Ng4 {[%clk
0:00:57.5]} 31. Rd4 {[%clk 0:00:30.4]} 31... Ne3 {[%clk 0:00:56.9]} 32. Re1
{[%clk 0:00:28]} 32... Rf8 {[%clk 0:00:56.8]} 33. Rd3 {[%clk 0:00:21.8]} 33...
Rf3 {[%clk 0:00:57]} 34. Nb5 {[%clk 0:00:19.8]} 34... Kh6 {[%clk 0:00:39.1]} 35.
Nd4 {[%clk 0:00:19.5]} 35... Rd7 {[%clk 0:00:39.5]} 36. Nxf3 {[%clk 0:00:15.3]}
36... Rxd3 {[%clk 0:00:39.2]} 37. Ne5 {[%clk 0:00:16.1]} 37... Rc3 {[%clk
0:00:38.8]} 38. Nc6 {[%clk 0:00:13.3]} 38... a6 {[%clk 0:00:32.4]} 39. Ne5
{[%clk 0:00:13]} 39... Kg7 {[%clk 0:00:31.5]} 40. Nd7 {[%clk 0:00:11.4]} 40...
b5 {[%clk 0:00:29.8]} 41. c5 {[%clk 0:00:11.9]} 41... b4 {[%clk 0:00:27.9]} 42.
Ne5 {[%clk 0:00:08.2]} 42... Nc2 {[%clk 0:00:26]} 43. Rc1 {[%clk 0:00:05.7]}
43... Rxc5 {[%clk 0:00:26.6]} 44. Nd3 {[%clk 0:00:06.1]} 44... Rc6 {[%clk
0:00:24.7]} 45. Kf2 {[%clk 0:00:03.6]} 45... a5 {[%clk 0:00:23.7]} 46. Ne5
{[%clk 0:00:03.6]} 46... Rc3 {[%clk 0:00:22.8]} 47. Nf3 {[%clk 0:00:03]} 47...
Kf6 {[%clk 0:00:20.5]} 48. Ne1 {[%clk 0:00:02.1]} 48... Nd4 {[%clk 0:00:08.7]}
49. Rxc3 {[%clk 0:00:01.9]} 49... bxc3 {[%clk 0:00:09.6]} 0-1

[Event "Early-Titled-Tuesday-Blitz-March-19-2024"]
[Site "Chess.com"]
[Date "2024.03.19"]
[Round "3"]
[White "valeriocarnicelli"]
[Black "Flawless_Fighter"]
[Result "0-1"]
[WhiteElo "2534"]
[BlackElo "2833"]
[TimeControl "180+1"]
[EndTime "8:29:21 PDT"]
[Termination "Flawless_Fighter won on time"]

1. e4 {[%clk 0:03:00.9]} 1... c6 {[%clk 0:02:59.1]} 2. d4 {[%clk 0:02:59.5]}
2... d5 {[%clk 0:03:00]} 3. e5 {[%clk 0:02:59.9]} 3... Bf5 {[%clk 0:02:59.8]} 4.
Nc3 {[%clk 0:03:00.4]} 4... h6 {[%clk 0:02:57.9]} 5. g4 {[%clk 0:02:59.2]} 5...
Bd7 {[%clk 0:02:57.7]} 6. Be3 {[%clk 0:02:47.9]} 6... e6 {[%clk 0:02:57.1]} 7.
h4 {[%clk 0:02:45.6]} 7... c5 {[%clk 0:02:55.5]} 8. f4 {[%clk 0:02:33]} 8...
cxd4 {[%clk 0:02:55.2]} 9. Bxd4 {[%clk 0:02:33.6]} 9... Nc6 {[%clk 0:02:55.9]}
10. Nf3 {[%clk 0:02:32]} 10... Nxd4 {[%clk 0:02:55.5]} 11. Nxd4 {[%clk
0:02:32.9]} 11... Qb6 {[%clk 0:02:47.3]} 12. Qd2 {[%clk 0:02:25.3]} 12... Bc5
{[%clk 0:02:43.4]} 13. O-O-O {[%clk 0:02:22.1]} 13... h5 {[%clk 0:02:40.6]} 14.
g5 {[%clk 0:02:05]} 14... Ne7 {[%clk 0:02:36.7]} 15. Kb1 {[%clk 0:01:50.5]}
15... g6 {[%clk 0:02:36.1]} 16. Nce2 {[%clk 0:01:30.6]} 16... Rc8 {[%clk
0:02:27.3]} 17. Rh3 {[%clk 0:01:29.9]} 17... O-O {[%clk 0:02:26.3]} 18. Rb3
{[%clk 0:01:26.2]} 18... Qc7 {[%clk 0:02:25.3]} 19. Bh3 {[%clk 0:01:22.1]} 19...
a6 {[%clk 0:02:23.4]} 20. Qd3 {[%clk 0:01:21.1]} 20... Kg7 {[%clk 0:02:21.7]}
21. Qd2 {[%clk 0:01:10.8]} 21... b5 {[%clk 0:02:21.7]} 22. Rf3 {[%clk
0:01:07.5]} 22... a5 {[%clk 0:02:18.7]} 23. Nb3 {[%clk 0:01:00]} 23... Bb6
{[%clk 0:02:17.8]} 24. Rc3 {[%clk 0:00:59]} 24... Qa7 {[%clk 0:02:16.1]} 25.
Rxc8 {[%clk 0:00:57.9]} 25... Rxc8 {[%clk 0:02:16.2]} 26. Nbd4 {[%clk
0:00:56.4]} 26... a4 {[%clk 0:02:11]} 27. a3 {[%clk 0:00:47.7]} 27... Rc4 {[%clk
0:02:11]} 28. c3 {[%clk 0:00:44.9]} 28... Qa5 {[%clk 0:01:34.5]} 29. Bf1 {[%clk
0:00:44.3]} 29... Rc8 {[%clk 0:01:31.7]} 30. Bh3 {[%clk 0:00:29.6]} 30... Bc5
{[%clk 0:01:29.2]} 31. Nc1 {[%clk 0:00:28.9]} 31... Qb6 {[%clk 0:01:26.3]} 32.
Na2 {[%clk 0:00:24]} 32... Nc6 {[%clk 0:01:25.1]} 33. Nb4 {[%clk 0:00:19.4]}
33... Nxb4 {[%clk 0:00:57.3]} 34. axb4 {[%clk 0:00:18.6]} 34... Be7 {[%clk
0:00:57.4]} 35. Bf1 {[%clk 0:00:17.4]} 35... Ra8 {[%clk 0:00:49]} 36. Ka2 {[%clk
0:00:17]} 36... a3 {[%clk 0:00:42]} 37. b3 {[%clk 0:00:16.9]} 37... Ra7 {[%clk
0:00:41.6]} 38. Qe3 {[%clk 0:00:11]} 38... Qc7 {[%clk 0:00:37.2]} 39. Rc1 {[%clk
0:00:09.9]} 39... Qb8 {[%clk 0:00:36.3]} 40. Bd3 {[%clk 0:00:09.3]} 40... Rc7
{[%clk 0:00:36.3]} 41. Rc2 {[%clk 0:00:08.3]} 41... Qc8 {[%clk 0:00:35.5]} 42.
Qd2 {[%clk 0:00:07.6]} 42... Qb7 {[%clk 0:00:32.7]} 43. Qe2 {[%clk 0:00:07]}
43... Qb6 {[%clk 0:00:30.6]} 44. Bxb5 {[%clk 0:00:05.3]} 44... Bc8 {[%clk
0:00:19.3]} 45. Bd3 {[%clk 0:00:04.1]} 45... Bxb4 {[%clk 0:00:15.5]} 46. cxb4
{[%clk 0:00:02.6]} 46... Rb7 {[%clk 0:00:08.7]} 0-1

[Event "Early-Titled-Tuesday-Blitz-March-19-2024"]
[Site "Chess.com"]
[Date "2024.03.19"]
[Round "3"]
[White "joksijoksi"]
[Black "wild3000"]
[Result "0-1"]
[WhiteElo "2611"]
[BlackElo "2437"]
[TimeControl "180+1"]
[EndTime "8:29:21 PDT"]
[Termination "wild3000 won by resignation"]

1. d4 {[%clk 0:03:00.9]} 1... Nf6 {[%clk 0:02:57.6]} 2. c4 {[%clk 0:03:00.2]}
2... e6 {[%clk 0:02:53.8]} 3. Nf3 {[%clk 0:02:59.6]} 3... b6 {[%clk 0:02:51.6]}
4. a3 {[%clk 0:02:58.3]} 4... Bb7 {[%clk 0:02:49.9]} 5. Nc3 {[%clk 0:02:58.9]}
5... d5 {[%clk 0:02:48.1]} 6. Bg5 {[%clk 0:02:58.6]} 6... Be7 {[%clk 0:02:47.9]}
7. cxd5 {[%clk 0:02:59.1]} 7... Nxd5 {[%clk 0:02:47.1]} 8. Bxe7 {[%clk
0:02:59.5]} 8... Nxe7 {[%clk 0:02:46.8]} 9. e3 {[%clk 0:02:59.9]} 9... O-O
{[%clk 0:02:46.7]} 10. Bd3 {[%clk 0:03:00.3]} 10... Nd7 {[%clk 0:02:34.7]} 11.
O-O {[%clk 0:02:52.4]} 11... c5 {[%clk 0:02:33.3]} 12. Rc1 {[%clk 0:02:49.6]}
12... cxd4 {[%clk 0:02:32.8]} 13. Nxd4 {[%clk 0:02:49]} 13... Ne5 {[%clk
0:02:30.3]} 14. Bxh7+ {[%clk 0:02:45.5]} 14... Kxh7 {[%clk 0:02:28.2]} 15. Qh5+
{[%clk 0:02:45.8]} 15... Kg8 {[%clk 0:02:28.2]} 16. Qxe5 {[%clk 0:02:46.7]}
16... Ng6 {[%clk 0:02:25.7]} 17. Qg3 {[%clk 0:02:45.9]} 17... Qf6 {[%clk
0:02:20.3]} 18. Ncb5 {[%clk 0:02:40.4]} 18... a6 {[%clk 0:02:10]} 19. Nd6 {[%clk
0:02:32.6]} 19... Bd5 {[%clk 0:02:05.7]} 20. Rc7 {[%clk 0:02:14.2]} 20... Rad8
{[%clk 0:01:59]} 21. Nb7 {[%clk 0:02:11.4]} 21... Bxb7 {[%clk 0:01:56]} 22. Rxb7
{[%clk 0:02:12.3]} 22... e5 {[%clk 0:01:53.1]} 23. Nf3 {[%clk 0:02:10.8]} 23...
b5 {[%clk 0:01:31.7]} 24. h4 {[%clk 0:02:10.2]} 24... Qc6 {[%clk 0:01:31.2]} 25.
Ra7 {[%clk 0:01:53.4]} 25... Qb6 {[%clk 0:01:30.4]} 26. h5 {[%clk 0:01:53.7]}
26... Qxa7 {[%clk 0:01:09.3]} 27. hxg6 {[%clk 0:01:53.8]} 27... fxg6 {[%clk
0:01:04.4]} 28. Qxg6 {[%clk 0:01:54.3]} 28... Rf6 {[%clk 0:01:01.7]} 29. Qg5
{[%clk 0:01:49.9]} 29... e4 {[%clk 0:00:54.1]} 30. Ne5 {[%clk 0:01:45.3]} 30...
Rdf8 {[%clk 0:00:49.8]} 31. Ng4 {[%clk 0:01:41.8]} 31... Re6 {[%clk 0:00:41.4]}
32. Qd5 {[%clk 0:01:37.9]} 32... Qf7 {[%clk 0:00:41.4]} 33. Rc1 {[%clk
0:01:28.4]} 33... Qf5 {[%clk 0:00:39.9]} 34. Qxf5 {[%clk 0:01:25]} 34... Rxf5
{[%clk 0:00:40.8]} 35. Rc8+ {[%clk 0:01:25.4]} 35... Kh7 {[%clk 0:00:39.4]} 36.
Rc2 {[%clk 0:01:22.2]} 36... Rg6 {[%clk 0:00:35.1]} 37. Nh2 {[%clk 0:01:22.4]}
37... Rd5 {[%clk 0:00:32.4]} 38. Nf1 {[%clk 0:01:21.8]} 38... Rd1 {[%clk
0:00:31.7]} 39. g3 {[%clk 0:01:22.5]} 39... Re6 {[%clk 0:00:26.6]} 40. Kg2
{[%clk 0:01:22.6]} 40... Rdd6 {[%clk 0:00:26.8]} 41. Nd2 {[%clk 0:01:21.3]}
41... Rc6 {[%clk 0:00:26.3]} 42. Rxc6 {[%clk 0:01:20.7]} 42... Rxc6 {[%clk
0:00:27.2]} 43. Nxe4 {[%clk 0:01:21.4]} 43... Rc2 {[%clk 0:00:26.9]} 44. b4
{[%clk 0:01:21.4]} 44... Ra2 {[%clk 0:00:24.9]} 45. Nc5 {[%clk 0:01:22]} 45...
Rxa3 {[%clk 0:00:25.1]} 46. Kf3 {[%clk 0:01:22.7]} 46... a5 {[%clk 0:00:24.8]}
47. bxa5 {[%clk 0:01:21.7]} 47... Rxa5 {[%clk 0:00:25.1]} 48. Ke4 {[%clk
0:01:21.3]} 48... b4 {[%clk 0:00:24.7]} 49. Nb3 {[%clk 0:01:21.9]} 49... Ra3
{[%clk 0:00:24.4]} 50. Nc5 {[%clk 0:01:17.5]} 50... Rc3 {[%clk 0:00:21.1]} 51.
Na4 {[%clk 0:01:16.1]} 51... Rc2 {[%clk 0:00:19.8]} 52. Kd3 {[%clk 0:01:12.6]}
52... Rxf2 {[%clk 0:00:19.5]} 53. Nc5 {[%clk 0:01:09.8]} 53... Rg2 {[%clk
0:00:18.4]} 54. Ne4 {[%clk 0:01:09]} 54... b3 {[%clk 0:00:18.5]} 55. Nc3 {[%clk
0:01:01.7]} 55... b2 {[%clk 0:00:17.8]} 56. Kc4 {[%clk 0:01:00.5]} 56... Rxg3
{[%clk 0:00:17.4]} 57. Kb3 {[%clk 0:01:01]} 57... Rxe3 {[%clk 0:00:16.1]} 58.
Kxb2 {[%clk 0:01:01.7]} 58... g5 {[%clk 0:00:15.1]} 59. Kc2 {[%clk 0:01:02.4]}
59... g4 {[%clk 0:00:14.6]} 60. Nd5 {[%clk 0:01:02.4]} 60... Re5 {[%clk
0:00:13.3]} 61. Nf4 {[%clk 0:01:02.5]} 61... g3 {[%clk 0:00:12.2]} 62. Kd3
{[%clk 0:01:03]} 62... Kh6 {[%clk 0:00:11.2]} 63. Kd2 {[%clk 0:01:02.9]} 63...
Re8 {[%clk 0:00:10.9]} 64. Ng2 {[%clk 0:00:58.3]} 64... Kg5 {[%clk 0:00:10.9]}
65. Kd3 {[%clk 0:00:58]} 65... Kg4 {[%clk 0:00:10.6]} 66. Kd2 {[%clk 0:00:58.4]}
66... Kh3 {[%clk 0:00:10.3]} 67. Nf4+ {[%clk 0:00:58.7]} 67... Kh2 {[%clk
0:00:10.5]} 68. Kd3 {[%clk 0:00:58.4]} 68... Rf8 {[%clk 0:00:09.8]} 69. Ne2
{[%clk 0:00:56]} 69... g2 {[%clk 0:00:10]} 0-1

[Event "Early-Titled-Tuesday-Blitz-March-19-2024"]
[Site "Chess.com"]
[Date "2024.03.19"]
[Round "3"]
[White "Sanan_Sjugirov"]
[Black "GelmanAlexander"]
[Result "1-0"]
[WhiteElo "3026"]
[BlackElo "2707"]
[TimeControl "180+1"]
[EndTime "8:29:22 PDT"]
[Termination "Sanan_Sjugirov won by resignation"]

1. e4 {[%clk 0:03:00.9]} 1... c5 {[%clk 0:02:59.8]} 2. Nf3 {[%clk 0:03:01]} 2...
e6 {[%clk 0:03:00.2]} 3. d3 {[%clk 0:02:56.3]} 3... Nc6 {[%clk 0:03:00.1]} 4. g3
{[%clk 0:02:56.4]} 4... Nf6 {[%clk 0:03:00.7]} 5. Bg2 {[%clk 0:02:53.8]} 5...
Be7 {[%clk 0:02:59.9]} 6. O-O {[%clk 0:02:52.5]} 6... d5 {[%clk 0:03:00.1]} 7.
Qe2 {[%clk 0:02:52.1]} 7... O-O {[%clk 0:03:00]} 8. e5 {[%clk 0:02:50.2]} 8...
Nd7 {[%clk 0:03:00]} 9. c4 {[%clk 0:02:50.7]} 9... a6 {[%clk 0:02:57.2]} 10. Nc3
{[%clk 0:02:48.7]} 10... Nd4 {[%clk 0:02:54.3]} 11. Nxd4 {[%clk 0:02:37.1]}
11... cxd4 {[%clk 0:02:54.5]} 12. Nb1 {[%clk 0:02:35.6]} 12... dxc4 {[%clk
0:02:51.6]} 13. dxc4 {[%clk 0:02:35.3]} 13... Nc5 {[%clk 0:02:43.1]} 14. Nd2
{[%clk 0:02:33.3]} 14... Bd7 {[%clk 0:02:18.3]} 15. Ne4 {[%clk 0:02:18.8]} 15...
Qb6 {[%clk 0:02:03.2]} 16. Nxc5 {[%clk 0:02:12.3]} 16... Bxc5 {[%clk 0:01:54.6]}
17. Be4 {[%clk 0:02:09.3]} 17... Bc6 {[%clk 0:01:51.9]} 18. Bd3 {[%clk
0:02:09.1]} 18... Qc7 {[%clk 0:01:30.1]} 19. Re1 {[%clk 0:02:04.5]} 19... Bb4
{[%clk 0:01:21.2]} 20. Rd1 {[%clk 0:01:57.1]} 20... a5 {[%clk 0:01:16.9]} 21.
Bf4 {[%clk 0:01:47.7]} 21... Be7 {[%clk 0:01:12.8]} 22. h4 {[%clk 0:01:44.8]}
22... Kh8 {[%clk 0:01:02.4]} 23. Qh5 {[%clk 0:01:30.3]} 23... g6 {[%clk
0:01:00.3]} 24. Qe2 {[%clk 0:01:24.5]} 24... b6 {[%clk 0:00:58.2]} 25. Rac1
{[%clk 0:01:14]} 25... Bb7 {[%clk 0:00:55.7]} 26. Be4 {[%clk 0:01:13.7]} 26...
Rfd8 {[%clk 0:00:52.8]} 27. Bxb7 {[%clk 0:01:10.1]} 27... Qxb7 {[%clk
0:00:53.1]} 28. Rd3 {[%clk 0:01:00.4]} 28... Rac8 {[%clk 0:00:49.9]} 29. a4
{[%clk 0:00:41]} 29... h5 {[%clk 0:00:42.4]} 30. b3 {[%clk 0:00:40.1]} 30... Rd7
{[%clk 0:00:39]} 31. Rcd1 {[%clk 0:00:40.2]} 31... Rcd8 {[%clk 0:00:39.2]} 32.
Bc1 {[%clk 0:00:35]} 32... Kg8 {[%clk 0:00:35.7]} 33. Kh2 {[%clk 0:00:25.1]}
33... Bc5 {[%clk 0:00:34.6]} 34. Bg5 {[%clk 0:00:24.5]} 34... Rc8 {[%clk
0:00:31.1]} 35. Bf6 {[%clk 0:00:23.8]} 35... Re8 {[%clk 0:00:16.5]} 36. g4
{[%clk 0:00:23.8]} 36... hxg4 {[%clk 0:00:13.8]} 37. Qxg4 {[%clk 0:00:24.7]}
37... Be7 {[%clk 0:00:14.1]} 38. Rxd4 {[%clk 0:00:19.1]} 38... Rxd4 {[%clk
0:00:13.4]} 39. Rxd4 {[%clk 0:00:20]} 39... Bxf6 {[%clk 0:00:14]} 40. exf6
{[%clk 0:00:20.9]} 40... Qc7+ {[%clk 0:00:09.3]} 41. Qg3 {[%clk 0:00:20.5]}
41... Qc5 {[%clk 0:00:08.9]} 42. Rg4 {[%clk 0:00:10.8]} 42... Rd8 {[%clk
0:00:06.2]} 43. Rxg6+ {[%clk 0:00:07]} 43... fxg6 {[%clk 0:00:06.4]} 44. Qxg6+
{[%clk 0:00:07.9]} 44... Kf8 {[%clk 0:00:07.3]} 45. Qg7+ {[%clk 0:00:08.4]}
45... Ke8 {[%clk 0:00:07.9]} 46. f7+ {[%clk 0:00:08.5]} 46... Kd7 {[%clk
0:00:07.7]} 47. f8=Q+ {[%clk 0:00:09.4]} 47... Kc8 {[%clk 0:00:08.1]} 48. Qxc5+
{[%clk 0:00:09]} 1-0

[Event "Early-Titled-Tuesday-Blitz-March-19-2024"]
[Site "Chess.com"]
[Date "2024.03.19"]
[Round "3"]
[White "KhazhatulyAlikhan"]
[Black "Fh2411"]
[Result "1-0"]
[WhiteElo "2462"]
[BlackElo "2634"]
[TimeControl "180+1"]
[EndTime "8:29:29 PDT"]
[Termination "KhazhatulyAlikhan won on time"]

1. e4 {[%clk 0:02:59.7]} 1... c5 {[%clk 0:02:56.2]} 2. Nf3 {[%clk 0:02:59.8]}
2... e6 {[%clk 0:02:55.6]} 3. d4 {[%clk 0:03:00.1]} 3... cxd4 {[%clk 0:02:56.5]}
4. Nxd4 {[%clk 0:03:00.3]} 4... a6 {[%clk 0:02:57.1]} 5. Bd3 {[%clk 0:02:59.2]}
5... Nc6 {[%clk 0:02:56.3]} 6. Nb3 {[%clk 0:02:54.8]} 6... Nf6 {[%clk 0:02:53]}
7. O-O {[%clk 0:02:53.8]} 7... Be7 {[%clk 0:02:43.7]} 8. Nc3 {[%clk 0:02:53.4]}
8... b5 {[%clk 0:02:39.7]} 9. a3 {[%clk 0:02:52.5]} 9... Bb7 {[%clk 0:02:38.4]}
10. Qe2 {[%clk 0:02:52.6]} 10... d6 {[%clk 0:02:38.5]} 11. Bd2 {[%clk
0:02:51.9]} 11... O-O {[%clk 0:02:37.9]} 12. Rae1 {[%clk 0:02:52.4]} 12... Re8
{[%clk 0:02:06.7]} 13. f4 {[%clk 0:02:51.6]} 13... e5 {[%clk 0:02:07]} 14. fxe5
{[%clk 0:02:40.2]} 14... Nxe5 {[%clk 0:01:57.8]} 15. Nd4 {[%clk 0:02:38.1]}
15... g6 {[%clk 0:01:40]} 16. Kh1 {[%clk 0:02:35]} 16... Rc8 {[%clk 0:01:30.6]}
17. Bf4 {[%clk 0:01:33.7]} 17... Rc7 {[%clk 0:00:53]} 18. Nf3 {[%clk 0:01:27.3]}
18... Nxd3 {[%clk 0:00:34.8]} 19. cxd3 {[%clk 0:01:15.3]} 19... Nh5 {[%clk
0:00:35.2]} 20. Qd2 {[%clk 0:01:08.3]} 20... Bf6 {[%clk 0:00:34.9]} 21. Bg5
{[%clk 0:00:57.4]} 21... Bxg5 {[%clk 0:00:26.4]} 22. Nxg5 {[%clk 0:00:58.3]}
22... Kg7 {[%clk 0:00:17.2]} 23. Qe3 {[%clk 0:00:51.4]} 23... h6 {[%clk
0:00:17.2]} 24. Qd4+ {[%clk 0:00:50.2]} 24... Kg8 {[%clk 0:00:12.7]} 25. Nf3
{[%clk 0:00:38.3]} 25... Qe7 {[%clk 0:00:09.5]} 26. Rf2 {[%clk 0:00:33.1]} 26...
Ng7 {[%clk 0:00:08.7]} 27. Ref1 {[%clk 0:00:32.5]} 27... Ne6 {[%clk 0:00:09.4]}
28. Qe3 {[%clk 0:00:33.3]} 28... Qf8 {[%clk 0:00:09.5]} 29. h3 {[%clk
0:00:29.7]} 29... Qg7 {[%clk 0:00:09.6]} 30. Nh2 {[%clk 0:00:30.3]} 30... h5
{[%clk 0:00:08.2]} 31. Nf3 {[%clk 0:00:30.2]} 31... Rce7 {[%clk 0:00:08.7]} 32.
Ng5 {[%clk 0:00:27.4]} 32... Nc5 {[%clk 0:00:07.9]} 33. Rf6 {[%clk 0:00:22.6]}
33... Ne6 {[%clk 0:00:06.8]} 34. Nxe6 {[%clk 0:00:19.3]} 34... Rxe6 {[%clk
0:00:07.3]} 35. Rxe6 {[%clk 0:00:14.9]} 35... Rxe6 {[%clk 0:00:06.9]} 36. Qb6
{[%clk 0:00:14.5]} 36... f6 {[%clk 0:00:03.4]} 37. Qd8+ {[%clk 0:00:12.5]} 37...
Kh7 {[%clk 0:00:03.9]} 38. Ne2 {[%clk 0:00:12.8]} 38... Qe7 {[%clk 0:00:03.6]}
39. Qb8 {[%clk 0:00:10.7]} 39... d5 {[%clk 0:00:02.6]} 40. Nf4 {[%clk
0:00:06.7]} 40... Re5 {[%clk 0:00:02.4]} 41. Rc1 {[%clk 0:00:05.3]} 1-0

[Event "Early-Titled-Tuesday-Blitz-March-19-2024"]
[Site "Chess.com"]
[Date "2024.03.19"]
[Round "3"]
[White "RebecaJimnz"]
[Black "kleber2007"]
[Result "0-1"]
[WhiteElo "2257"]
[BlackElo "2459"]
[TimeControl "180+1"]
[EndTime "8:29:30 PDT"]
[Termination "kleber2007 won on time"]

1. e4 {[%clk 0:02:53.1]} 1... c6 {[%clk 0:01:09.1]} 2. d4 {[%clk 0:02:52.8]}
2... d5 {[%clk 0:01:09.5]} 3. exd5 {[%clk 0:02:53.1]} 3... cxd5 {[%clk
0:01:09.4]} 4. Bd3 {[%clk 0:02:53.4]} 4... Nc6 {[%clk 0:01:08.5]} 5. c3 {[%clk
0:02:54]} 5... Nf6 {[%clk 0:01:09]} 6. h3 {[%clk 0:02:54.4]} 6... g6 {[%clk
0:01:08.4]} 7. Nf3 {[%clk 0:02:54.5]} 7... Bf5 {[%clk 0:01:08]} 8. Bf4 {[%clk
0:02:53.1]} 8... e6 {[%clk 0:01:07.2]} 9. O-O {[%clk 0:02:52]} 9... Bd6 {[%clk
0:01:07]} 10. Ne5 {[%clk 0:02:43]} 10... Qc7 {[%clk 0:01:06.9]} 11. Re1 {[%clk
0:02:41.3]} 11... Ne4 {[%clk 0:01:04.4]} 12. g4 {[%clk 0:02:28.2]} 12... O-O-O
{[%clk 0:00:59.2]} 13. gxf5 {[%clk 0:02:17.1]} 13... gxf5 {[%clk 0:01:00.1]} 14.
Qf3 {[%clk 0:01:48]} 14... Rhg8+ {[%clk 0:00:59.2]} 15. Kh1 {[%clk 0:01:46.3]}
15... Bxe5 {[%clk 0:00:56]} 16. dxe5 {[%clk 0:01:42.7]} 16... Nxe5 {[%clk
0:00:55.2]} 17. Bxe5 {[%clk 0:01:38.3]} 17... Qxe5 {[%clk 0:00:54.5]} 18. Na3
{[%clk 0:01:32.7]} 18... Rg5 {[%clk 0:00:48.5]} 19. Rg1 {[%clk 0:01:28.6]} 19...
Rdg8 {[%clk 0:00:47.8]} 20. Rxg5 {[%clk 0:01:20]} 20... Rxg5 {[%clk 0:00:48.7]}
21. Rg1 {[%clk 0:01:19.3]} 21... h6 {[%clk 0:00:45.1]} 22. Nc2 {[%clk
0:01:07.6]} 22... Qg7 {[%clk 0:00:35.9]} 23. Rxg5 {[%clk 0:01:03]} 23... hxg5
{[%clk 0:00:36.8]} 24. Nd4 {[%clk 0:00:57.9]} 24... Qh6 {[%clk 0:00:36.3]} 25.
Kg1 {[%clk 0:00:54.3]} 25... Qh4 {[%clk 0:00:35]} 26. Nxf5 {[%clk 0:00:34.3]}
26... exf5 {[%clk 0:00:33.1]} 27. Qxf5+ {[%clk 0:00:34.7]} 27... Kb8 {[%clk
0:00:29.9]} 28. Qe5+ {[%clk 0:00:31.7]} 28... Kc8 {[%clk 0:00:29]} 29. Qe8+
{[%clk 0:00:30.4]} 29... Kc7 {[%clk 0:00:28.9]} 30. Qxf7+ {[%clk 0:00:30.5]}
30... Kc6 {[%clk 0:00:29]} 31. Qe6+ {[%clk 0:00:20.6]} 31... Nd6 {[%clk
0:00:28.6]} 32. Qe3 {[%clk 0:00:16.6]} 32... a6 {[%clk 0:00:27.7]} 33. b4 {[%clk
0:00:15.1]} 33... g4 {[%clk 0:00:26.6]} 34. hxg4 {[%clk 0:00:14.4]} 34... Qxg4+
{[%clk 0:00:26.9]} 35. Qg3 {[%clk 0:00:14.3]} 35... Qd1+ {[%clk 0:00:26.4]} 36.
Bf1 {[%clk 0:00:14.8]} 36... Qd2 {[%clk 0:00:26.2]} 37. a4 {[%clk 0:00:14]}
37... Ne4 {[%clk 0:00:26]} 38. Qg6+ {[%clk 0:00:09.8]} 38... Kc7 {[%clk
0:00:25.8]} 39. Qg7+ {[%clk 0:00:07.9]} 39... Kb8 {[%clk 0:00:25.6]} 40. Qe5+
{[%clk 0:00:07.5]} 40... Ka8 {[%clk 0:00:23.5]} 41. Qh8+ {[%clk 0:00:07.4]}
41... Ka7 {[%clk 0:00:19.1]} 42. Qd4+ {[%clk 0:00:08.1]} 42... Qxd4 {[%clk
0:00:18.1]} 43. cxd4 {[%clk 0:00:09]} 43... Kb6 {[%clk 0:00:18.6]} 44. f4 {[%clk
0:00:07.4]} 44... a5 {[%clk 0:00:18.6]} 45. bxa5+ {[%clk 0:00:05.5]} 45... Kxa5
{[%clk 0:00:19.5]} 46. Bb5 {[%clk 0:00:05.5]} 46... Kb4 {[%clk 0:00:19.8]} 47.
f5 {[%clk 0:00:05.4]} 47... Kc3 {[%clk 0:00:19.7]} 48. Kg2 {[%clk 0:00:02.6]}
48... Kxd4 {[%clk 0:00:19.8]} 49. Kf3 {[%clk 0:00:02.8]} 49... Ke5 {[%clk
0:00:20.2]} 50. Kg4 {[%clk 0:00:03.3]} 50... Nd6 {[%clk 0:00:19.7]} 51. Bd7
{[%clk 0:00:02.9]} 51... d4 {[%clk 0:00:19.7]} 52. Kg5 {[%clk 0:00:01.5]} 52...
d3 {[%clk 0:00:17.5]} 53. f6 {[%clk 0:00:02.2]} 53... Ne4+ {[%clk 0:00:16.6]}
54. Kg6 {[%clk 0:00:02.2]} 54... Nxf6 {[%clk 0:00:17.5]} 55. Bg4 {[%clk
0:00:01.5]} 55... Nxg4 {[%clk 0:00:17.2]} 0-1